{"text_format":"1","workbook":"xlsx","n_sheets":4,"sheets":["Odměny","Ubytování","Stravné","Občerstvení"],"not_rendered":{"charts":0,"images":0,"macros":0,"external_links":0,"defined_names":1,"comments":2,"pivot_tables":0},"unopened":[],"bounds":{"document_bytes":16777216,"sheet_cells":100000,"rows_first":2000,"rows_last":500,"rows_between":2000,"halvings":0,"cell_chars":16384,"cell_head_chars":4096},"cells_cut":0,"cells_raw":0,"read":"whole","date_system":"1900"}

{"sheet":"Odměny","index":0,"n_rows":19,"n_cols":11,"rows_kept":19,"cut":false,"hidden":false,"merged":[[0,0,0,4],[0,5,0,10],[17,0,17,6],[17,10,18,10],[18,0,18,9]]}
["Potvrzení o výplatě ODMĚNY Z DPČ, DPP na akci: "]
[null,"Příjmení a jméno","Funkce","Za den","Počet dnů","Za stopu","Počet stop","Hrubého (Kč)","Daň \n(Kč)","Vyplaceno (Kč)","Převzal - podpis"]
["1.",null,null,null,null,null,null,{"$f":"D3*E3+F3*G3","v":0},{"$f":"H3*15%","v":0},{"$f":"H3-I3","v":0}]
["2.",null,null,null,null,null,null,0,0,0]
["3.",null,null,null,null,null,null,0,0,0]
["4.",null,null,null,null,null,null,0,0,0]
["5.",null,null,null,null,null,null,0,0,0]
["6.",null,null,null,null,null,null,0,0,0]
["7.",null,null,null,null,null,null,0,0,0]
["8.",null,null,null,null,null,null,0,0,0]
["9.",null,null,null,null,null,null,0,0,0]
["10.",null,null,null,null,null,null,0,0,0]
["11.",null,null,null,null,null,null,0,0,0]
["12.",null,null,null,null,null,null,0,0,0]
["13.",null,null,null,null,null,null,0,0,0]
["14.",null,null,null,null,null,null,0,0,0]
["15.",null,null,null,null,null,null,0,0,0]
[null,null,null,null,null,null,null,{"$f":"SUM(H3:H17)","v":0},0,0,"razítko + podpis"]
["Přilohou tohoto seznamu jsou dohody o pracovní činnosti či provedení práce a potvrzení o úhradě srážkové daně."]

{"sheet":"Ubytování","index":1,"n_rows":25,"n_cols":5,"rows_kept":25,"cut":false,"hidden":false,"merged":[[0,0,0,1],[1,0,1,4],[23,0,23,3],[24,0,25,4]]}
["Seznam UBYTOVANÝCH na akci:"]
["Ubytování BEZ STRAVY se hradí delegovaným funkcionářům a předem schváleným organizátorům dle rozpočtu. \nCeny za ubytování nesmí být vyšší než ceny v místě a čase obvyklém.\nV případě, že není ubytování hrazeno přímo ZKO, musí být podpis o převzetí proplacené částky. "]
[null,"Příjmení a jméno","Funkce","Počet nocí","Převzal - podpis \n(v případě vyplacení)"]
["1."]
["2."]
["3."]
["4."]
["5."]
["6."]
["7."]
["8."]
["9."]
["10."]
["11."]
["12."]
["13."]
["14."]
["15."]
["16."]
["17."]
["18."]
["19."]
["20."]
["Celkem za ubytování"]
["Přílohou tohoto seznamu jsou faktura/účtenka a k ní buď VPD (při platbě v hotovosti), stvrzenka z platebního terminálu (při platbě kartou) nebo výpis z BÚ (při platbě bankovním převodem)."]

{"sheet":"Stravné","index":2,"n_rows":29,"n_cols":8,"rows_kept":29,"cut":false,"hidden":false,"merged":[[0,0,0,2],[1,0,1,7],[0,3,0,7],[28,0,28,6]]}
["Seznam STRAVNÉHO na akci: "]
["Výše příspěvku na stravné je stanovena jednotnou sazbou bez ohledu na skutečnost, zda je proplácena nebo poskytnuta: 155 Kč, trvá-li pracovní cesta 5–12 hod.; \n236 Kč (12 hod.<prac.cesta ≤18 hod.); 370 Kč (prac.cesta déle než 18 hod.)"]
[null,"Příjmení a jméno","Funkce","1. den","2. den","3. den","Celkem","Převzal - podpis"]
["1."]
["2."]
["3."]
["4."]
["5."]
["6."]
["7."]
["8."]
["9."]
["10."]
["11."]
["12."]
["13."]
["14."]
["15."]
["16."]
["17."]
["18."]
["19."]
["20."]
["21."]
["22."]
["23."]
["24."]
["25."]
["Celkem stravné   "]

{"sheet":"Občerstvení","index":3,"n_rows":23,"n_cols":5,"rows_kept":23,"cut":false,"hidden":false,"merged":[[0,0,0,1],[1,0,1,4],[22,0,22,3]]}
["Příspěvek na OBČERSTVENÍ na akci: "]
["Zajištění občerstvení pro delegované funkcionáře (rozhodčí, figuranti, vedouí stop a kladeči)\n na soutěží v částce 50 Kč/den akce.\nV případě, že nebudete příspěvek na občerstvení funkcionářům vyplácet, přiložením tabulky k vyúčtování organizátor čestně prohlašuje, že občerstvení skutečně poskytl."]
[null,"Příjmení a jméno funkcionáře","Počet dnů","Celkem","Převzal - podpis \n(pouze v případě vyplacení)"]
["1.",null,null,{"$f":"C4*50","v":0}]
["2.",null,null,{"$f":"C5*50","v":0}]
["3.",null,null,0]
["4.",null,null,0]
["5.",null,null,0]
["6.",null,null,0]
["7.",null,null,0]
["8.",null,null,0]
["9.",null,null,0]
["10.",null,null,0]
["11.",null,null,0]
["12.",null,null,0]
["13.",null,null,0]
["14.",null,null,0]
["15.",null,null,0]
["16.",null,null,0]
["17.",null,null,0]
["18.",null,null,0]
["19.",null,null,0]
["Celkem občerstvení   ",null,null,null,{"$f":"SUM($D$4:$D$22)","v":0}]